fUSD/lending_fUSD_20250607
["ID","MTS","AMOUNT","RATE_DAILY","PERIOD"]
[364848982,1749274258243,-197.457272,0.00027397,7]
[364848983,1749274258253,-480.0,0.00027397,5]
[364848984,1749274258264,-554.27,0.00027397,5]
[364848985,1749274258274,-159.081604,0.00027397,7]
[364848986,1749274258284,-171.445012,0.00027397,7]
[364848987,1749274258294,-210.34723874,0.00027397,5]
[364848988,1749274258304,-480.0,0.00027397,5]
[364848989,1749274258313,-466.2013567,0.00027397,5]
[364848990,1749274258323,-480.0,0.00027397,5]
[364848991,1749274258333,-463.78547554,0.00027397,5]
[364848992,1749274258343,-480.0,0.00027397,5]
[364848993,1749274258353,-480.0,0.00027397,5]
[364848994,1749274258363,-492.15611086,0.00027397,5]
[364848995,1749274258372,-480.0,0.00027397,5]
[364848996,1749274258382,-737.61,0.00027397,5]
[364848997,1749274258392,-480.0,0.00027397,5]
[364848998,1749274258401,-480.0,0.00027397,5]
[364848999,1749274258411,-500.0,0.00027397,5]
[364849000,1749274258423,-480.0,0.00027397,5]
[364849001,1749274258433,-500.0,0.00027397,5]
[364849002,1749274258443,-500.0,0.00027397,5]
[364849003,1749274258452,-509.52110975,0.00027397,5]
[364849004,1749274258462,-480.0,0.00027397,5]
[364849005,1749274258472,-480.0,0.00027397,5]
[364849006,1749274258482,-480.0,0.00027397,5]
[364849007,1749274258492,-480.0,0.00027397,5]
[364849008,1749274258503,-480.0,0.00027397,5]
[364849009,1749274258514,-480.0,0.00027397,5]
[364849010,1749274258524,-1037.35,0.00027397,5]
[364849011,1749274258534,-480.0,0.00027397,5]
[364849012,1749274258544,-480.0,0.00027397,5]
[364849013,1749274258554,-480.0,0.00027397,5]
[364849014,1749274258564,-500.0,0.00027397,5]
[364849015,1749274258575,-500.0,0.00027397,5]
[364849016,1749274258586,-500.0,0.00027397,5]
[364849017,1749274258597,-480.0,0.00027397,5]
[364849018,1749274258607,-500.0,0.00027397,5]
[364849019,1749274258618,-430.2542926,0.00027397,5]
[364849020,1749274258627,-500.0,0.00027397,5]
[364849021,1749274258637,-500.0,0.00027397,5]
[364849022,1749274258648,-500.0,0.00027397,5]
[364849023,1749274258659,-207.852747,0.00027397,7]
[364849024,1749274258668,-500.0,0.00027397,5]
[364849025,1749274258678,-207.852747,0.00027397,7]
[364849026,1749274258687,-491.63697672,0.00027397,5]
[364849027,1749274258698,-207.852747,0.00027397,7]
[364849028,1749274258708,-207.852747,0.00027397,7]
[364849029,1749274258718,-480.0,0.00027397,5]
[364849030,1749274258728,-480.0,0.00027397,5]
[364849031,1749274258738,-10000.0,0.00027397,7]
[364849032,1749274258747,-10000.0,0.00027397,7]
[364849033,1749274258757,-207.852747,0.00027397,7]
[364849034,1749274258767,-10000.0,0.00027397,7]
[364849035,1749274258777,-480.0,0.00027397,5]
[364849036,1749274258786,-10000.0,0.00027397,7]
[364849037,1749274258796,-207.852747,0.00027397,7]
[364849038,1749274258806,-207.852747,0.00027397,7]
[364849039,1749274258816,-207.852747,0.00027397,7]
[364849040,1749274258826,-480.0,0.00027397,5]
[364849041,1749274258836,-634.26,0.00027397,5]
[364849042,1749274258846,-10000.0,0.00027397,7]
[364849043,1749274258856,-480.0,0.00027397,5]
[364849044,1749274258867,-10000.0,0.00027397,7]
[364849045,1749274258876,-1212.38,0.00027397,5]
[364849046,1749274258886,-10000.0,0.00027397,7]
[364849047,1749274258895,-1115.25,0.00027397,5]
[364849048,1749274258905,-10000.0,0.00027397,7]
[364849049,1749274258916,-611.81,0.00027397,5]
[364849050,1749274258925,-480.0,0.00027397,5]
[364849051,1749274258935,-427.14605506,0.00027397,5]
[364849052,1749274258945,-426.06823034,0.00027397,5]
[364849053,1749274258954,-480.0,0.00027397,5]
[364849054,1749274258963,-10000.0,0.00027397,7]
[364849055,1749274258974,-163.67194531,0.00027397,5]
[364849056,1749274258984,-480.0,0.00027397,5]
[364849057,1749274258994,-427.3457674,0.00027397,5]
[364849058,1749274259004,-10000.0,0.00027397,7]
[364849059,1749274259013,-10000.0,0.00027397,7]
[364849060,1749274259023,-480.0,0.00027397,5]
[364849061,1749274259032,-10000.0,0.00027397,7]
[364849062,1749274259042,-500.00740803,0.00027397,5]
[364849063,1749274259051,-480.0,0.00027397,5]
[364849064,1749274259061,-480.0,0.00027397,5]
[364849065,1749274259070,-247.57441204,0.00027397,5]
[364849066,1749274259079,-813.01,0.00027397,5]
[364849067,1749274259090,-480.0,0.00027397,5]
[364849068,1749274259099,-480.0,0.00027397,5]
[364849069,1749274259109,-480.0,0.00027397,5]
[364849070,1749274259119,-480.0,0.00027397,5]
[364849071,1749274259128,-495.53230249,0.00027397,5]
[364849072,1749274259137,-480.0,0.00027397,5]
[364849073,1749274259147,-450.37785265,0.00027397,5]
[364849074,1749274259156,-480.0,0.00027397,5]
[364849075,1749274259167,-480.0,0.00027397,5]
[364849076,1749274259175,-480.0,0.00027397,5]
[364849077,1749274259185,-480.0,0.00027397,5]
[364849078,1749274259195,-424.14717833,0.00027397,5]
[364849079,1749274259204,-480.0,0.00027397,5]
[364849080,1749274259214,-480.0,0.00027397,5]
[364849081,1749274259223,-480.79945134,0.00027397,5]
[364849082,1749274259233,-487.01657088,0.00027397,5]
[364849083,1749274259243,-480.0,0.00027397,5]
[364849084,1749274259252,-368.89279965,0.00027397,5]
[364849085,1749274259262,-427.63098731,0.00027397,5]
[364849086,1749274259272,-652.14,0.00027397,5]
[364849087,1749274259282,-480.0,0.00027397,5]
[364849088,1749274259291,-480.0,0.00027397,5]
[364849089,1749274259302,-480.0,0.00027397,5]
[364849090,1749274259311,-570.08323876,0.00027397,5]
[364849091,1749274259321,-480.0,0.00027397,5]
[364849092,1749274259331,-500.0,0.00027397,5]
[364849093,1749274259340,-480.0,0.00027397,5]
[364849094,1749274259349,-480.0,0.00027397,5]
[364849095,1749274259359,-500.0,0.00027397,5]
[364849096,1749274259369,-500.0,0.00027397,5]
[364849097,1749274259378,-984.78,0.00027397,5]
[364849098,1749274259389,-500.0,0.00027397,5]
[364849099,1749274259398,-500.0,0.00027397,5]
[364849100,1749274259409,-500.0,0.00027397,5]
[364849101,1749274259420,-500.0,0.00027397,5]
[364849102,1749274259429,-500.0,0.00027397,5]
[364849103,1749274259439,-500.0,0.00027397,5]
[364849104,1749274259448,-835.68,0.00027397,5]
[364849105,1749274259458,-500.0,0.00027397,5]
[364849106,1749274259471,-500.0,0.00027397,5]
[364849107,1749274259480,-500.0,0.00027397,5]
[364849108,1749274259489,-480.0,0.00027397,5]
[364849109,1749274259499,-487.28168083,0.00027397,5]
[364849110,1749274259510,-480.0,0.00027397,5]
[364849111,1749274259519,-480.0,0.00027397,5]
[364849112,1749274259529,-480.0,0.00027397,5]
[364849113,1749274259538,-485.72205612,0.00027397,5]
[364849114,1749274259548,-601.8,0.00027397,5]
[364849115,1749274259557,-480.0,0.00027397,5]
[364849116,1749274259567,-480.0,0.00027397,5]
[364849117,1749274259576,-787.2,0.00027397,5]
[364849118,1749274259587,-480.0,0.00027397,5]
[364849119,1749274259597,-480.0,0.00027397,5]
[364849120,1749274259607,-592.62,0.00027397,5]
[364849121,1749274259616,-480.0,0.00027397,5]
[364849122,1749274259625,-480.0,0.00027397,5]
[364849123,1749274259634,-487.64773492,0.00027397,5]
[364849124,1749274259643,-501.50488483,0.00027397,5]
[364849125,1749274259652,-895.060117,0.00027397,7]
[364849126,1749274259662,-895.060117,0.00027397,7]
[364849127,1749274259672,-480.0,0.00027397,5]
[364849128,1749274259769,-895.060117,0.00027397,7]
[364849129,1749274259778,-895.060117,0.00027397,7]
[364849130,1749274259789,-488.13758326,0.00027397,5]
[364849131,1749274259799,-480.0,0.00027397,5]
[364849132,1749274259808,-480.0,0.00027397,5]
[364849133,1749274259818,-895.060117,0.00027397,7]
[364849134,1749274259829,-895.060117,0.00027397,7]
[364849135,1749274259839,-753.65,0.00027397,5]
[364849136,1749274259850,-895.060117,0.00027397,7]
[364849137,1749274259861,-895.060117,0.00027397,7]
[364849138,1749274259871,-583.54533055,0.00027397,5]
[364849139,1749274259880,-2016.63,0.00027397,5]
[364849140,1749274259888,-1504.99,0.00027397,5]
[364849141,1749274259897,-480.0,0.00027397,5]
[364849142,1749274259906,-480.0,0.00027397,5]
[364849143,1749274259916,-990.87,0.00027397,5]
[364849144,1749274259926,-425.07826374,0.00027397,5]
[364849145,1749274259935,-379.24589811,0.00027397,5]
[364849146,1749274259944,-325.5077297,0.00027397,5]
[364849147,1749274259953,-429.75405372,0.00027397,5]
[364849148,1749274259962,-480.0,0.00027397,5]
[364849149,1749274259972,-483.29720452,0.00027397,5]
[364849150,1749274259982,-429.02331791,0.00027397,5]
[364849151,1749274259991,-850.33,0.00027397,5]
[364849152,1749274260004,-151.0,0.00027397,7]
[364849153,1749274260013,-151.0,0.00027397,7]
[364849154,1749274260022,-480.0,0.00027397,5]
[364849155,1749274260032,-151.0,0.00027397,7]
[364849156,1749274260042,-151.0,0.00027397,7]
[364849157,1749274260052,-480.0,0.00027397,5]
[364849158,1749274260061,-366.6385592,0.00027397,5]
[364849159,1749274260071,-480.0,0.00027397,5]
[364849160,1749274260080,-491.7457715,0.00027397,5]
[364849161,1749274260090,-480.0,0.00027397,5]
[364849162,1749274260099,-151.0,0.00027397,7]
[364849163,1749274260108,-497.6411766,0.00027397,5]
[364849164,1749274260117,-151.0,0.00027397,7]
[364849165,1749274260126,-151.0,0.00027397,7]
[364849166,1749274260136,-179.05386841,0.00027397,5]
[364849167,1749274260145,-480.0,0.00027397,5]
[364849168,1749274260154,-151.0,0.00027397,7]
[364849169,1749274260164,-480.0,0.00027397,5]
[364849170,1749274260173,-494.24,0.00027397,5]
[364849171,1749274260183,-428.15364908,0.00027397,5]
[364849172,1749274260194,-300.853411,0.00027397,7]
[364849173,1749274260203,-300.853411,0.00027397,7]
[364849174,1749274260212,-577.15,0.00027397,5]
[364849175,1749274260221,-300.853411,0.00027397,7]
[364849176,1749274260231,-480.0,0.00027397,5]
[364849177,1749274260241,-300.853411,0.00027397,7]
[364849178,1749274260251,-485.66827084,0.00027397,5]
[364849179,1749274260261,-480.0,0.00027397,5]
[364849180,1749274260270,-480.0,0.00027397,5]
[364849181,1749274260280,-478.32202349,0.00027397,5]
[364849182,1749274260290,-964.13,0.00027397,5]
[364849183,1749274260299,-300.853411,0.00027397,7]
[364849184,1749274260310,-486.47136559,0.00027397,5]
[364849185,1749274260320,-480.0,0.00027397,5]
[364849186,1749274260330,-300.853411,0.00027397,7]
[364849187,1749274260340,-300.853411,0.00027397,7]
[364849188,1749274260351,-480.0,0.00027397,5]
[364849189,1749274260360,-300.853411,0.00027397,7]
[364849190,1749274260369,-480.0,0.00027397,5]
[364849191,1749274260379,-480.0,0.00027397,5]
[364849192,1749274260388,-879.54,0.00027397,5]
[364849193,1749274260398,-167.857019,0.00027397,7]
[364849194,1749274260407,-167.857019,0.00027397,7]
[364849195,1749274260417,-167.857019,0.00027397,7]
[364849196,1749274260427,-483.54103888,0.00027397,5]
[364849197,1749274260436,-167.857019,0.00027397,7]
[364849198,1749274260445,-549.32840579,0.00027397,5]
[364849199,1749274260454,-480.0,0.00027397,5]
[364849200,1749274260463,-614.65,0.00027397,5]
[364849201,1749274260473,-167.857019,0.00027397,7]
[364849202,1749274260482,-167.857019,0.00027397,7]
[364849203,1749274260492,-485.65283659,0.00027397,5]
[364849204,1749274260501,-167.857019,0.00027397,7]
[364849205,1749274260510,-167.857019,0.00027397,7]
[364849206,1749274260520,-480.0,0.00027397,5]
[364849207,1749274260529,-480.0,0.00027397,5]
[364849208,1749274260539,-488.949945,0.00027397,5]
[364849209,1749274260548,-557.93229089,0.00027397,5]
[364849210,1749274260557,-480.0,0.00027397,5]
[364849211,1749274260567,-480.0,0.00027397,5]
[364849212,1749274260579,-480.0,0.00027397,5]
[364849213,1749274260591,-480.0,0.00027397,5]
[364849214,1749274260601,-480.0,0.00027397,5]
[364849215,1749274260610,-480.0,0.00027397,5]
[364849216,1749274260620,-248.05098619,0.00027397,5]
[364849217,1749274260630,-480.0,0.00027397,5]
[364849218,1749274260639,-480.0,0.00027397,5]
[364849219,1749274260648,-480.0,0.00027397,2]
[364849220,1749274260658,-480.0,0.00027397,5]
[364849221,1749274260668,-388.757715,0.00027397,28]
[364849222,1749274260677,-151.0,0.00027397,7]
[364849223,1749274260686,-151.0,0.00027397,7]
[364849224,1749274260696,-489.66624717,0.00027397,5]
[364849225,1749274260706,-151.0,0.00027397,7]
[364849226,1749274260715,-151.0,0.00027397,7]
[364849227,1749274260724,-495.20755165,0.00027397,5]
[364849228,1749274260733,-480.0,0.00027397,5]
[364849229,1749274260743,-488.30067448,0.00027397,5]
[364849230,1749274260752,-151.0,0.00027397,7]
[364849231,1749274260761,-930.43,0.00027397,5]
[364849232,1749274260770,-151.0,0.00027397,7]
[364849233,1749274260779,-151.0,0.00027397,7]
[364849234,1749274260789,-607.29,0.00027397,5]
[364849235,1749274260799,-480.0,0.00027397,5]
[364849236,1749274260809,-151.0,0.00027397,7]
[364849237,1749274260819,-480.0,0.00027397,5]
[364849238,1749274260829,-492.29958263,0.00027397,5]
[364849239,1749274260838,-480.0,0.00027397,5]
[364849240,1749274260847,-956.19,0.00027397,5]
[364849241,1749274260857,-867.98,0.00027397,5]
[364849242,1749274260866,-1473.87,0.00027397,5]
[364849243,1749274260875,-482.95809485,0.00027397,5]
[364849244,1749274260885,-484.65494655,0.00027397,5]
[364849245,1749274260895,-842.56,0.00027397,5]
[364849246,1749274260904,-490.41264568,0.00027397,5]
[364849247,1749274260914,-798.33,0.00027397,5]
[364849248,1749274260924,-488.26239483,0.00027397,5]
[364849249,1749274260933,-498.61095277,0.00027397,5]
[364849250,1749274260943,-2181.17,0.00027397,5]
[364849251,1749274260952,-480.0,0.00027397,5]
[364849252,1749274260962,-2163.97,0.00027397,5]
[364849253,1749274260971,-486.09126929,0.00027397,5]
[364849254,1749274260981,-1150.03,0.00027397,5]
[364849255,1749274260990,-620.08,0.00027397,5]
[364849256,1749274261000,-480.0,0.00027397,5]
[364849257,1749274261009,-480.0,0.00027397,5]
[364849258,1749274261018,-984.27,0.00027397,5]
[364849259,1749274261028,-5750.84,0.00027397,5]
[364849260,1749274261037,-480.0,0.00027397,5]
[364849261,1749274261047,-480.0,0.00027397,5]
[364849262,1749274261057,-480.0,0.00027397,5]
[364849263,1749274261066,-7920.31,0.00027397,5]
[364849264,1749274261077,-222.34240529,0.00027397,5]
[364849265,1749274261087,-480.87981901,0.00027397,2]
[364849266,1749274261098,-151.0,0.00027397,7]
[364849267,1749274261107,-498.55337311,0.00027397,5]
[364849268,1749274261117,-489.73576939,0.00027397,5]
[364849269,1749274261127,-151.0,0.00027397,7]
[364849270,1749274261137,-151.0,0.00027397,7]
[364849271,1749274261146,-151.0,0.00027397,7]
[364849272,1749274261156,-3111.73,0.00027397,5]
[364849273,1749274261166,-480.0,0.00027397,5]
[364849274,1749274261175,-480.0,0.00027397,5]
[364849275,1749274261185,-433.07089719,0.00027397,5]
[364849276,1749274261194,-835.03,0.00027397,5]
[364849277,1749274261203,-620.28,0.00027397,5]
[364849278,1749274261213,-480.0,0.00027397,5]
[364849279,1749274261223,-432.30071169,0.00027397,5]
[364849280,1749274261233,-1719.89,0.00027397,5]
[364849281,1749274261243,-1505.03,0.00027397,5]
[364849282,1749274261253,-3297.59,0.00027397,5]
[364849283,1749274261263,-480.0,0.00027397,5]
[364849284,1749274261272,-526.5,0.00027397,5]
[364849285,1749274261282,-480.0,0.00027397,5]
[364849286,1749274261291,-480.0,0.00027397,5]
[364849287,1749274261301,-480.0,0.00027397,5]
[364849288,1749274261310,-480.0,0.00027397,5]
[364849289,1749274261319,-498.7067146,0.00027397,5]
[364849290,1749274261328,-484.5590565,0.00027397,5]
[364849291,1749274261338,-1072.0,0.00027397,5]
[364849292,1749274261347,-480.0,0.00027397,5]
[364849293,1749274261357,-480.0,0.00027397,5]
[364849294,1749274261366,-480.0,0.00027397,5]
[364849295,1749274261375,-769.25,0.00027397,5]
[364849296,1749274261383,-2277.69,0.00027397,5]
[364849297,1749274261393,-480.0,0.00027397,5]
[364849298,1749274261402,-480.0,0.00027397,5]
[364849299,1749274261411,-7395.24,0.00027397,5]
[364849300,1749274261421,-222.13349,0.00027397,7]
[364849301,1749274261430,-222.13349,0.00027397,7]
[364849302,1749274261440,-222.13349,0.00027397,7]
[364849303,1749274261449,-222.13349,0.00027397,7]
[364849304,1749274261459,-222.13349,0.00027397,7]
[364849305,1749274261468,-8194.39,0.00027397,5]
[364849306,1749274261477,-342.42443047,0.00027397,5]
[364849307,1749274261488,-1091.22,0.00027397,5]
[364849308,1749274261499,-480.0,0.00027397,5]
[364849309,1749274261509,-480.0,0.00027397,5]
[364849310,1749274261519,-560.14257479,0.00027397,5]
[364849311,1749274261529,-222.13349,0.00027397,7]
[364849312,1749274261538,-523.67968506,0.00027397,5]
[364849313,1749274261549,-222.13349,0.00027397,7]
[364849314,1749274261561,-619.63,0.00027397,5]
[364849315,1749274261572,-222.13349,0.00027397,7]
[364849316,1749274261581,-622.41,0.00027397,5]
[364849317,1749274261595,-484.29621027,0.00027397,5]
[364849318,1749274261606,-222.13349,0.00027397,7]
[364849319,1749274261615,-222.133491,0.00027397,7]
[364849320,1749274261624,-480.0,0.00027397,5]
[364849321,1749274261635,-295.22800815,0.00027397,5]
[364849322,1749274261646,-2010.42,0.00027397,5]
[364849323,1749274261656,-665.13,0.00027397,5]
[364849324,1749274261666,-354.436695,0.00027397,7]
[364849325,1749274261675,-354.436695,0.00027397,7]
[364849326,1749274261685,-354.436695,0.00027397,7]
[364849327,1749274261694,-480.0,0.00027397,5]
[364849328,1749274261704,-354.436695,0.00027397,7]
[364849329,1749274261713,-499.8827556,0.00027397,5]
[364849330,1749274261722,-2535.94,0.00027397,5]
[364849331,1749274261731,-354.436695,0.00027397,7]
[364849332,1749274261740,-354.436695,0.00027397,7]
[364849333,1749274261750,-480.0,0.00027397,5]
[364849334,1749274261759,-550.60390058,0.00027397,5]
[364849335,1749274261769,-354.436695,0.00027397,7]
[364849336,1749274261778,-354.436695,0.00027397,7]
[364849337,1749274261788,-480.0,0.00027397,5]
[364849338,1749274261797,-1935.13,0.00027397,2]
[364849339,1749274261806,-480.0,0.00027397,5]
[364849340,1749274261815,-480.0,0.00027397,5]
[364849341,1749274261824,-482.16696901,0.00027397,5]
[364849342,1749274261833,-1427.01,0.00027397,5]
[364849343,1749274261842,-480.0,0.00027397,5]
[364849344,1749274261851,-480.0,0.00027397,5]
[364849345,1749274261860,-480.0,0.00027397,5]
[364849346,1749274261869,-480.0,0.00027397,5]
[364849347,1749274261878,-480.0,0.00027397,5]
[364849348,1749274261887,-3633.12,0.00027397,5]
[364849349,1749274261896,-1000.0,0.00027397,5]
[364849350,1749274261905,-480.0,0.00027397,5]
[364849351,1749274261916,-1554.807314,0.00027397,7]
[364849352,1749274261926,-1554.807314,0.00027397,7]
[364849353,1749274261935,-529.43157275,0.00027397,5]
[364849354,1749274261945,-1554.807314,0.00027397,7]
[364849355,1749274261954,-1039.63,0.00027397,5]
[364849356,1749274261963,-480.0,0.00027397,5]
[364849357,1749274261973,-1788.9,0.00027397,5]
[364849358,1749274261982,-1666.49,0.00027397,5]
[364849359,1749274261991,-1554.807314,0.00027397,7]
[364849360,1749274262001,-1554.807314,0.00027397,7]
[364849361,1749274262011,-480.0,0.00027397,5]
[364849362,1749274262020,-1554.807314,0.00027397,7]
[364849363,1749274262030,-484.81840201,0.00027397,5]
[364849364,1749274262039,-480.0,0.00027397,5]
[364849365,1749274262049,-882.95,0.00027397,5]
[364849366,1749274262059,-482.33615052,0.00027397,5]
[364849367,1749274262068,-802.83,0.00027397,5]
[364849368,1749274262078,-428.67987014,0.00027397,5]
[364849369,1749274262087,-480.0,0.00027397,5]
[364849370,1749274262096,-480.0,0.00027397,5]
[364849371,1749274262105,-480.0,0.00027397,5]
[364849372,1749274262114,-450.91416255,0.00027397,5]
[364849373,1749274262124,-787.01,0.00027397,5]
[364849374,1749274262133,-1298.4,0.00027397,5]
[364849375,1749274262143,-480.0,0.00027397,5]
[364849376,1749274262153,-481.61,0.00027397,5]
[364849377,1749274262163,-509.07501896,0.00027397,5]
[364849378,1749274262173,-6018.65,0.00027397,5]
[364849379,1749274262183,-482.9088306,0.00027397,5]
[364849380,1749274262193,-1257.45,0.00027397,5]
[364849381,1749274262203,-480.0,0.00027397,5]
[364849382,1749274262213,-492.09122242,0.00027397,5]
[364849383,1749274262223,-1795.02,0.00027397,5]
[364849384,1749274262232,-483.6911322,0.00027397,5]
[364849385,1749274262242,-480.0,0.00027397,5]
[364849386,1749274262252,-2008.91,0.00027397,5]
[364849387,1749274262261,-480.0,0.00027397,5]
[364849388,1749274262271,-300.0,0.00027397,5]
[364849389,1749274262281,-486.81693847,0.00027397,5]
[364849390,1749274262291,-480.0,0.00027397,5]
[364849391,1749274262301,-675.89,0.00027397,5]
[364849392,1749274262311,-487.44471724,0.00027397,5]
[364849393,1749274262320,-1671.91,0.00027397,5]
[364849394,1749274262330,-480.0,0.00027397,5]
[364849395,1749274262340,-480.0,0.00027397,5]
[364849396,1749274262351,-480.0,0.00027397,5]
[364849397,1749274262360,-1342.98,0.00027397,5]
[364849398,1749274262370,-480.0,0.00027397,5]
[364849399,1749274262380,-3400.62,0.00027397,5]
[364849400,1749274262390,-480.0,0.00027397,5]
[364849401,1749274262400,-155.16629765,0.00027397,5]
[364849402,1749274262410,-480.0,0.00027397,5]
[364849403,1749274262420,-580.63,0.00027397,5]
[364849404,1749274262430,-480.0,0.00027397,5]
[364849405,1749274262440,-482.77231864,0.00027397,5]
[364849406,1749274262451,-11876.34,0.00027397,5]
[364849407,1749274262461,-480.0,0.00027397,2]
[364849408,1749274262471,-3035.15,0.00027397,5]
[364849409,1749274262481,-480.0,0.00027397,5]
[364849410,1749274262491,-585.0452618,0.00027397,5]
[364849411,1749274262502,-480.0,0.00027397,5]
[364849412,1749274262512,-2212.47,0.00027397,5]
[364849413,1749274262522,-2212.47,0.00027397,5]
[364849414,1749274262532,-452.14157502,0.00027397,5]
[364849415,1749274262543,-2212.47,0.00027397,5]
[364849416,1749274262552,-1219.17,0.00027397,5]
[364849417,1749274262562,-2212.47,0.00027397,5]
[364849418,1749274262572,-2212.47,0.00027397,5]
[364849419,1749274262581,-603.389432,0.00027397,7]
[364849420,1749274262595,-2212.47,0.00027397,5]
[364849421,1749274262605,-603.389432,0.00027397,7]
[364849422,1749274262615,-603.389432,0.00027397,7]
[364849423,1749274262625,-485.90618444,0.00027397,5]
[364849424,1749274262635,-480.0,0.00027397,5]
[364849425,1749274262645,-603.389432,0.00027397,7]
[364849426,1749274262656,-603.389432,0.00027397,7]
[364849427,1749274262668,-489.8,0.00027397,5]
[364849428,1749274262678,-2212.47,0.00027397,5]
[364849429,1749274262688,-2212.47,0.00027397,5]
[364849430,1749274262699,-2212.47,0.00027397,5]
[364849431,1749274262708,-2212.47,0.00027397,5]
[364849432,1749274262718,-486.80380295,0.00027397,5]
[364849433,1749274262728,-2212.47,0.00027397,5]
[364849434,1749274262738,-645.346851,0.00027397,7]
[364849435,1749274262748,-2212.47,0.00027397,5]
[364849436,1749274262758,-2212.47,0.00027397,5]
[364849437,1749274262768,-487.50923536,0.00027397,5]
[364849438,1749274262779,-645.346851,0.00027397,7]
[364849439,1749274262788,-603.389432,0.00027397,7]
[364849440,1749274262798,-481.83381128,0.00027397,5]
[364849441,1749274262808,-480.0,0.00027397,5]
[364849442,1749274262818,-1513.66,0.00027397,5]
[364849443,1749274262829,-603.389432,0.00027397,7]
[364849444,1749274262839,-645.346851,0.00027397,7]
[364849445,1749274262850,-480.0,0.00027397,5]
[364849446,1749274262860,-645.346851,0.00027397,7]
[364849447,1749274262870,-603.389432,0.00027397,7]
[364849448,1749274262880,-493.964404,0.00027397,7]
[364849449,1749274262891,-603.389432,0.00027397,7]
[364849450,1749274262900,-645.346851,0.00027397,7]
[364849451,1749274262910,-493.964404,0.00027397,7]
[364849452,1749274262921,-2644.51,0.00027397,5]
[364849453,1749274262931,-480.0,0.00027397,5]
[364849454,1749274262940,-603.389428,0.00027397,7]
[364849455,1749274262950,-1581.96,0.00027397,5]
[364849456,1749274262960,-493.964404,0.00027397,7]
[364849457,1749274262971,-151.0,0.00027397,7]
[364849458,1749274262981,-480.0,0.00027397,5]
[364849459,1749274262991,-493.964404,0.00027397,7]
[364849460,1749274263002,-151.0,0.00027397,7]
[364849461,1749274263012,-480.0,0.00027397,5]
[364849462,1749274263023,-493.964404,0.00027397,7]
[364849463,1749274263033,-151.0,0.00027397,7]
[364849464,1749274263044,-151.0,0.00027397,7]
[364849465,1749274263055,-485.346493,0.00027397,5]
[364849466,1749274263066,-493.964404,0.00027397,7]
[364849467,1749274263078,-594.14,0.00027397,5]
[364849468,1749274263089,-493.964404,0.00027397,7]
[364849469,1749274263100,-151.0,0.00027397,7]
[364849470,1749274263111,-493.964404,0.00027397,7]
[364849471,1749274263122,-151.0,0.00027397,7]
[364849472,1749274263133,-493.964404,0.00027397,7]
[364849473,1749274263144,-151.0,0.00027397,7]
[364849474,1749274263156,-151.0,0.00027397,7]
[364849475,1749274263166,-493.9644,0.00027397,7]
[364849476,1749274263177,-1674.37,0.00027397,5]
[364849477,1749274263188,-645.346851,0.00027397,7]
[364849478,1749274263198,-846.59,0.00027397,5]
[364849479,1749274263209,-480.0,0.00027397,5]
[364849480,1749274263219,-645.346851,0.00027397,7]
[364849481,1749274263230,-151.0,0.00027397,7]